{"text_format":"1","workbook":"xlsx","n_sheets":8,"sheets":["Dataset","shortcut","Cell ref","Ctrl + Enter","Autofill","Fomrula - New value","Cell ref - New value ","VBA"],"not_rendered":{"charts":0,"images":0,"macros":1,"external_links":0,"defined_names":0,"comments":0,"pivot_tables":0},"unopened":[],"bounds":{"document_bytes":16777216,"sheet_cells":100000,"rows_first":2000,"rows_last":500,"rows_between":2000,"halvings":0,"cell_chars":16384,"cell_head_chars":4096},"cells_cut":0,"cells_raw":0,"read":"whole","date_system":"1900"}

{"sheet":"Dataset","index":0,"n_rows":12,"n_cols":5,"rows_kept":12,"cut":false,"hidden":false,"merged":[[1,1,1,4]]}
[]
[null,"Repeat Cell Values"]
[]
[null,"Month","Forecast ","Actual","Target"]
[null,"January",1300,2000,"Pass"]
[null,"February",2000,2100,"Pass"]
[null,"March",1930,2200,"Pass"]
[null,"April",1957,2500,"Pass"]
[null,"May",1111,1300,"Pass"]
[null,"June",1850,1000,"Fail"]
[null,"July",2065,1100,"Fail"]
[null,"August",1959,1200,"Fail"]

{"sheet":"shortcut","index":1,"n_rows":12,"n_cols":5,"rows_kept":12,"cut":false,"hidden":false,"merged":[[1,1,1,4]]}
[]
[null,"Using Keyboard Shortcut"]
[]
[null,"Month","Forecast ","Actual","Target"]
[null,"January",1300,2000,"Pass"]
[null,"February",2000,2100,{"$f":"E5","v":"Pass"}]
[null,"March",1930,2200,"Pass"]
[null,"April",1957,2500,"Pass"]
[null,"May",1111,1300,"Pass"]
[null,"June",1850,1000,"Fail"]
[null,"July",2065,1100,{"$f":"E10","v":"Fail"}]
[null,"August",1959,1200,"Fail"]

{"sheet":"Cell ref","index":2,"n_rows":12,"n_cols":5,"rows_kept":12,"cut":false,"hidden":false,"merged":[[1,1,1,4]]}
[]
[null,"Using Cell Reference"]
[]
[null,"Month","Forecast ","Actual","Target"]
[null,"January",1300,2000,"Pass"]
[null,"February",2000,2100]
[null,"March",1930,2200]
[null,"April",1957,2500]
[null,"May",1111,1300]
[null,"June",1850,1000,"Fail"]
[null,"July",2065,1100]
[null,"August",1959,1200]

{"sheet":"Ctrl + Enter","index":3,"n_rows":12,"n_cols":5,"rows_kept":12,"cut":false,"hidden":false,"merged":[[1,1,1,4]]}
[]
[null,"Using Keyboard Shortcut"]
[]
[null,"Month","Forecast ","Actual","Target"]
[null,"January",1300,2000,"Pass"]
[null,"February",2000,2100,"Pass"]
[null,"March",1930,2200,"Pass"]
[null,"April",1957,2500,"Pass"]
[null,"May",1111,1300,"Pass"]
[null,"June",1850,1000,"Fail"]
[null,"July",2065,1100,"Fail"]
[null,"August",1959,1200,"Fail"]

{"sheet":"Autofill","index":4,"n_rows":12,"n_cols":5,"rows_kept":12,"cut":false,"hidden":false,"merged":[[1,1,1,4]]}
[]
[null,"Using AutoFill Feature"]
[]
[null,"Month","Forecast ","Actual","Target"]
[null,"January",1300,2000,"Pass"]
[null,"February",2000,2100]
[null,"March",1930,2200]
[null,"April",1957,2500]
[null,"May",1111,1300]
[null,"June",1850,1000,"Fail"]
[null,"July",2065,1100]
[null,"August",1959,1200]

{"sheet":"Fomrula - New value","index":5,"n_rows":12,"n_cols":6,"rows_kept":12,"cut":false,"hidden":false,"merged":[[1,1,1,4]]}
[]
[null,"Using Formula until a New Value is Reached"]
[]
[null,"Month","Forecast ","Actual","Target"]
[null,"January",1300,2000,"Pass",{"$f":"E5","v":"Pass"}]
[null,"February",2000,2100,null,{"$f":"IF(E6=\"\",F5,E6)","v":"Pass"}]
[null,"March",1930,2200,null,{"$f":"IF(E7=\"\",F6,E7)","v":"Pass"}]
[null,"April",1957,2500,null,"Pass"]
[null,"May",1111,1300,null,"Pass"]
[null,"June",1850,1000,"Fail","Fail"]
[null,"July",2065,1100,null,"Fail"]
[null,"August",1959,1200,null,"Fail"]

{"sheet":"Cell ref - New value ","index":6,"n_rows":12,"n_cols":5,"rows_kept":12,"cut":false,"hidden":false,"merged":[[1,1,1,4]]}
[]
[null,"Using Cell Reference until a New Value is Reached"]
[]
[null,"Month","Forecast ","Actual","Target"]
[null,"January",1300,2000,"Pass"]
[null,"February",2000,2100,{"$f":"E5","v":"Pass"}]
[null,"March",1930,2200,"Pass"]
[null,"April",1957,2500,"Pass"]
[null,"May",1111,1300,"Pass"]
[null,"June",1850,1000,"Fail"]
[null,"July",2065,1100,{"$f":"E10","v":"Fail"}]
[null,"August",1959,1200,"Fail"]

{"sheet":"VBA","index":7,"n_rows":12,"n_cols":5,"rows_kept":12,"cut":false,"hidden":false,"merged":[[1,1,1,4]]}
[]
[null,"Using VVA Code"]
[]
[null,"Month","Forecast ","Actual","Target"]
[null,"January",1300,2000,"Pass"]
[null,"February",2000,2100,"Pass"]
[null,"March",1930,2200,"Pass"]
[null,"April",1957,2500,"Pass"]
[null,"May",1111,1300,"Pass"]
[null,"June",1850,1000,"Fail"]
[null,"July",2065,1100,"Fail"]
[null,"August",1959,1200,"Fail"]